fUST/lending_fUST_20240210
["ID","MTS","AMOUNT","RATE_DAILY","PERIOD"]
[313666558,1707558639266,-500.0,0.00021917,2]
[313666559,1707558639277,-500.0,0.00021917,2]
[313666560,1707558639288,-1457.93,0.00021917,2]
[313666561,1707558639299,-500.0,0.00021917,2]
[313666562,1707558639311,-17467.92,0.00021917,2]
[313666563,1707558639322,-500.0,0.00021917,2]
[313666564,1707558639335,-500.0,0.00021917,2]
[313666565,1707558639347,-500.0,0.00021917,2]
[313666566,1707558639358,-1818.63,0.00021917,2]
[313666567,1707558639368,-9484.97,0.00021917,2]
[313666568,1707558639378,-500.0,0.00021917,2]
[313666569,1707558639389,-2245.47,0.00021917,2]
[313666570,1707558639402,-10149.24,0.00021917,2]
[313666571,1707558639415,-500.0,0.00021917,2]
[313666572,1707558639426,-553.42,0.00021917,2]
[313666573,1707558639442,-762.6,0.00021917,2]
[313666574,1707558639455,-500.0,0.00021917,2]
[313666575,1707558639466,-500.0,0.00021917,2]
[313666576,1707558639478,-1318.18,0.00021917,2]
[313666577,1707558639487,-500.0,0.00021917,2]
[313666578,1707558639499,-9566.37,0.00021917,2]
[313666579,1707558639510,-500.0,0.00021917,2]
[313666580,1707558639522,-630.46,0.00021917,2]
[313666581,1707558639533,-586.91,0.00021917,2]
[313666582,1707558639544,-948.8,0.00021917,2]
[313666583,1707558639556,-6083.98,0.00021917,2]
[313666584,1707558639567,-7621.04,0.00021917,2]
[313666585,1707558639579,-1682.05,0.00021917,2]
[313666586,1707558639590,-4784.96,0.00021917,2]
[313666587,1707558639602,-1234.78,0.00021917,2]
[313666588,1707558639613,-6889.21,0.00021917,2]
[313666589,1707558639625,-1689.01,0.00021917,2]
[313666590,1707558639635,-959.54,0.00021917,2]
[313666591,1707558639645,-1772.64,0.00021917,2]
[313666592,1707558639654,-5189.13,0.00021917,2]
[313666593,1707558639664,-901.5,0.00021917,2]
[313666594,1707558639675,-166.666666,0.00021918,2]
[313666595,1707558639686,-310.3971413,0.00021918,2]
[313666596,1707558639697,-307.4096268,0.00021918,2]
[313666597,1707558639709,-151.0,0.00021927,2]
[313666598,1707558639719,-85064.88573733,0.00021927,2]
[313666599,1707558639730,-294.44827242,0.00022,4]
[313666600,1707558639740,-326.61559364,0.00022,2]
[313666601,1707558639751,-427.31508471,0.00022,2]
[313666602,1707558639762,-564.26107295,0.00022025,2]
[313666603,1707558639773,-156.93164239,0.00022025,2]
[313666604,1707558639783,-155.9815372,0.00022025,2]
[313666605,1707558639793,-1500.0,0.00022026,2]
[313666606,1707558639803,-734.05,0.00022027,2]
[313666607,1707558639813,-500.0,0.00022027,2]
[313666608,1707558639823,-500.0,0.00022027,2]
[313666609,1707558639834,-500.0,0.00022027,2]
[313666610,1707558639844,-500.0,0.00022027,2]
[313666611,1707558639854,-500.0,0.00022027,2]
[313666612,1707558639864,-500.0,0.00022027,2]
[313666613,1707558639875,-500.0,0.00022027,2]
[313666614,1707558639885,-500.0,0.00022027,2]
[313666615,1707558639895,-500.0,0.00022027,2]
[313666616,1707558639906,-500.0,0.00022027,2]
[313666617,1707558639916,-500.0,0.00022027,2]
[313666618,1707558639939,-500.0,0.00022027,2]
[313666619,1707558639954,-500.0,0.00022027,2]
[313666620,1707558639968,-500.0,0.00022027,2]
[313666621,1707558639980,-500.0,0.00022027,2]
[313666622,1707558639993,-500.0,0.00022027,2]
[313666623,1707558640006,-1342.24,0.00022027,2]
[313666624,1707558640019,-2059.2,0.00022027,2]
[313666625,1707558640032,-757.81,0.00022027,2]
[313666626,1707558640044,-500.0,0.00022027,2]
[313666627,1707558640056,-500.0,0.00022027,2]
[313666628,1707558640068,-500.0,0.00022027,2]
[313666629,1707558640080,-1255.72,0.00022027,2]
[313666630,1707558640092,-905.43,0.00022027,2]
[313666631,1707558640103,-818.69,0.00022027,2]
[313666632,1707558640115,-1831.6,0.00022027,2]
[313666633,1707558640127,-500.0,0.00022027,2]
[313666634,1707558640138,-799.91,0.00022027,2]
[313666635,1707558640148,-548.67,0.00022027,2]
[313666636,1707558640159,-1372.7,0.00022027,2]
[313666637,1707558640171,-500.0,0.00022027,2]
[313666638,1707558640182,-500.0,0.00022027,2]
[313666639,1707558640192,-500.0,0.00022027,2]
[313666640,1707558640203,-1457.93,0.00022027,2]
[313666641,1707558640213,-500.0,0.00022027,2]
[313666642,1707558640226,-17467.92,0.00022027,2]
[313666643,1707558640236,-500.0,0.00022027,2]
[313666644,1707558640248,-500.0,0.00022027,2]
[313666645,1707558640258,-500.0,0.00022027,2]
[313666646,1707558640269,-1818.63,0.00022027,2]
[313666647,1707558640280,-9484.97,0.00022027,2]
[313666648,1707558640291,-500.0,0.00022027,2]
[313666649,1707558640302,-2245.47,0.00022027,2]
[313666650,1707558640312,-10149.24,0.00022027,2]
[313666652,1707558640323,-500.0,0.00022027,2]
[313666653,1707558640334,-553.42,0.00022027,2]
[313666654,1707558640345,-762.6,0.00022027,2]
[313666655,1707558640356,-500.0,0.00022027,2]
[313666656,1707558640366,-500.0,0.00022027,2]
[313666657,1707558640377,-1318.18,0.00022027,2]
[313666658,1707558640388,-9566.37,0.00022027,2]
[313666659,1707558640398,-500.0,0.00022027,2]
[313666660,1707558640409,-630.46,0.00022027,2]
[313666661,1707558640419,-586.91,0.00022027,2]
[313666662,1707558640429,-948.8,0.00022027,2]
[313666663,1707558640444,-151.0,0.00022027,2]
[313666664,1707558640455,-6083.98,0.00022027,2]
[313666665,1707558640465,-7621.04,0.00022027,2]
[313666666,1707558640476,-1682.05,0.00022027,2]
[313666667,1707558640487,-4784.96,0.00022027,2]
[313666668,1707558640499,-1234.78,0.00022027,2]
[313666669,1707558640510,-6889.21,0.00022027,2]
[313666670,1707558640521,-1689.01,0.00022027,2]
[313666671,1707558640533,-959.54,0.00022027,2]
[313666672,1707558640543,-1772.64,0.00022027,2]
[313666673,1707558640554,-5189.13,0.00022027,2]
[313666674,1707558640564,-901.5,0.00022027,2]
[313666675,1707558640575,-1500.0,0.00022028,2]
[313666676,1707558640586,-1500.0,0.00022031,2]
[313666677,1707558640597,-1500.0,0.00022032,2]
[313666678,1707558640607,-1500.0,0.00022032,2]
[313666679,1707558640618,-1500.0,0.00022035,2]
[313666680,1707558640630,-1500.0,0.00022036,2]
[313666681,1707558640640,-1500.0,0.00022039,2]
[313666682,1707558640651,-1500.0,0.00022041,2]
[313666683,1707558640820,-1500.0,0.00022042,2]
[313666684,1707558640835,-1500.0,0.00022045,2]
[313666685,1707558640846,-598.29,0.00022045,2]
[313666686,1707558640855,-1500.0,0.00022049,2]
[313666687,1707558640864,-1500.0,0.00022051,2]
[313666688,1707558640873,-1500.0,0.00022054,2]
[313666689,1707558640882,-1500.0,0.00022057,2]
[313666690,1707558640891,-1500.0,0.00022059,2]
[313666691,1707558640900,-1500.0,0.00022061,2]
[313666692,1707558640909,-1500.0,0.00022063,2]
[313666693,1707558640918,-1500.0,0.00022063,2]
[313666694,1707558640928,-1500.0,0.00022065,2]
[313666695,1707558640937,-1500.0,0.00022068,2]
[313666696,1707558640946,-155.08995217,0.00022134,2]
[313666697,1707558640955,-734.05,0.00022136,2]
[313666698,1707558640965,-500.0,0.00022136,2]
[313666699,1707558640974,-500.0,0.00022136,2]
[313666700,1707558640983,-151.0,0.00022136,2]
[313666701,1707558640991,-500.0,0.00022136,2]
[313666702,1707558641001,-151.0,0.00022136,2]
[313666703,1707558641010,-500.0,0.00022136,2]
[313666704,1707558641020,-500.0,0.00022136,2]
[313666705,1707558641029,-500.0,0.00022136,2]
[313666707,1707558641038,-500.0,0.00022136,2]
[313666709,1707558641047,-151.0,0.00022136,2]
[313666710,1707558641056,-500.0,0.00022136,2]
[313666712,1707558641066,-500.0,0.00022136,2]
[313666714,1707558641076,-500.0,0.00022136,2]
[313666716,1707558641085,-1342.24,0.00022136,2]
[313666718,1707558641094,-2059.2,0.00022136,2]
[313666721,1707558641104,-757.81,0.00022136,2]
[313666722,1707558641114,-500.0,0.00022136,2]
[313666724,1707558641123,-500.0,0.00022136,2]
[313666726,1707558641132,-500.0,0.00022136,2]
[313666728,1707558641141,-1255.72,0.00022136,2]
[313666730,1707558641150,-905.43,0.00022136,2]
[313666732,1707558641159,-818.69,0.00022136,2]
[313666735,1707558641168,-1831.6,0.00022136,2]
[313666736,1707558641177,-500.0,0.00022136,2]
[313666739,1707558641187,-799.91,0.00022136,2]
[313666740,1707558641196,-548.67,0.00022136,2]
[313666743,1707558641206,-1372.7,0.00022136,2]
[313666744,1707558641215,-500.0,0.00022136,2]
[313666746,1707558641224,-500.0,0.00022136,2]
[313666748,1707558641234,-500.0,0.00022136,2]
[313666750,1707558641243,-1457.93,0.00022136,2]
[313666752,1707558641252,-500.0,0.00022136,2]
[313666754,1707558641261,-17467.92,0.00022136,2]
[313666756,1707558641269,-500.0,0.00022136,2]
[313666758,1707558641279,-500.0,0.00022136,2]
[313666760,1707558641289,-500.0,0.00022136,2]
[313666762,1707558641297,-1818.63,0.00022136,2]
[313666764,1707558641307,-9484.97,0.00022136,2]
[313666766,1707558641316,-500.0,0.00022136,2]
[313666768,1707558641326,-2245.47,0.00022136,2]
[313666770,1707558641336,-10149.24,0.00022136,2]
[313666772,1707558641345,-525.04272941,0.00022136,2]
[313666774,1707558641354,-553.42,0.00022136,2]
[313666776,1707558641363,-762.6,0.00022136,2]
[313666778,1707558641373,-500.0,0.00022136,2]
[313666780,1707558641382,-500.0,0.00022136,2]
[313666782,1707558641392,-1318.18,0.00022136,2]
[313666784,1707558641401,-9566.37,0.00022136,2]
[313666786,1707558641411,-302.49844096,0.00022136,2]
[313666788,1707558641420,-630.46,0.00022136,2]
[313666791,1707558641431,-586.91,0.00022136,2]
[313666793,1707558641443,-948.8,0.00022136,2]
[313666795,1707558641453,-238.747061,0.00022136,2]
[313666797,1707558641462,-6083.98,0.00022136,2]
[313666799,1707558641473,-7621.04,0.00022136,2]
[313666801,1707558641482,-1682.05,0.00022136,2]
[313666803,1707558641491,-4784.96,0.00022136,2]
[313666805,1707558641500,-1234.78,0.00022136,2]
[313666807,1707558641509,-6889.21,0.00022136,2]
[313666809,1707558641519,-1689.01,0.00022136,2]
[313666811,1707558641528,-959.54,0.00022136,2]
[313666813,1707558641537,-1772.64,0.00022136,2]
[313666815,1707558641546,-5189.13,0.00022136,2]
[313666817,1707558641556,-901.5,0.00022136,2]
[313666819,1707558641565,-182.70499067,0.00022144,2]
[313666821,1707558641575,-158.31126831,0.00022144,2]
[313666822,1707558641584,-1688.20558013,0.00022144,2]
[313666824,1707558641594,-175.72920133,0.00022144,2]
[313666827,1707558641605,-214.01715706,0.00022145,2]
[313666829,1707558641614,-151.0,0.00022146,2]
[313666830,1707558641623,-44444.0,0.00022146,2]
[313666832,1707558641632,-151.0,0.00022169,2]
[313666834,1707558641641,-500.0,0.00022223,2]
[313666836,1707558641650,-500.0,0.00022223,2]
[313666838,1707558641659,-271.35184158,0.00022223,2]
[313666840,1707558641668,-500.0,0.00022223,2]
[313666842,1707558641677,-500.0,0.00022223,2]
[313666844,1707558641686,-500.0,0.00022223,2]
[313666846,1707558641695,-500.0,0.00022223,2]
[313666848,1707558641704,-500.0,0.00022223,2]
[313666850,1707558641713,-373.06924269,0.00022223,2]
[313666852,1707558641722,-500.0,0.00022223,2]
[313666854,1707558641731,-500.0,0.00022223,2]
[313666856,1707558641740,-500.0,0.00022223,2]
[313666858,1707558641749,-484.61251664,0.00022223,2]
[313666860,1707558641758,-500.0,0.00022223,2]
[313666862,1707558641767,-500.0,0.00022223,2]
[313666864,1707558641777,-500.0,0.00022223,2]
[313666867,1707558641786,-414.5536658,0.00022223,2]
[313666869,1707558641795,-246.32714134,0.00022223,2]
[313666870,1707558641804,-500.0,0.00022223,2]
[313666872,1707558641813,-500.0,0.00022223,2]
[313666875,1707558641823,-500.0,0.00022223,2]
[313666877,1707558641832,-500.0,0.00022223,2]
[313666878,1707558641840,-500.0,0.00022223,2]
[313666881,1707558641850,-500.0,0.00022223,2]
[313666883,1707558641859,-500.0,0.00022223,2]
[313666885,1707558641868,-500.0,0.00022223,2]
[313666887,1707558641878,-500.0,0.00022223,2]
[313666889,1707558641887,-500.0,0.00022223,2]
[313666891,1707558641896,-14937.55330931,0.00022224,2]
[313666961,1707558646093,-24900.0,0.00020762,2]
[313666962,1707558646105,-2242.24,0.00022214,3]
[313666963,1707558646116,-246.69947735,0.00022223,2]
[313666964,1707558646127,-88507.66280494,0.00022224,2]
[313666965,1707558646138,-151.0,0.00022224,2]
[313666966,1707558646147,-734.05,0.00022246,2]
[313666967,1707558646158,-500.0,0.00022246,2]
[313666968,1707558646169,-500.0,0.00022246,2]
[313666969,1707558646180,-500.0,0.00022246,2]
[313666970,1707558646189,-500.0,0.00022246,2]
[313666971,1707558646198,-500.0,0.00022246,2]
[313666972,1707558646207,-500.0,0.00022246,2]
[313666973,1707558646216,-500.0,0.00022246,2]
[313666974,1707558646225,-151.0,0.00022246,2]
[313666975,1707558646235,-426.30316685,0.00022246,2]
[313666976,1707558646244,-500.0,0.00022246,2]
[313666977,1707558646253,-500.0,0.00022246,2]
[313666978,1707558646263,-1342.24,0.00022246,2]
[313666979,1707558646272,-2059.2,0.00022246,2]
[313666980,1707558646281,-757.81,0.00022246,2]
[313666981,1707558646290,-500.0,0.00022246,2]
[313666982,1707558646299,-500.0,0.00022246,2]
[313666983,1707558646308,-500.0,0.00022246,2]
[313666984,1707558646317,-1255.72,0.00022246,2]
[313666985,1707558646327,-905.43,0.00022246,2]
[313666986,1707558646337,-818.69,0.00022246,2]
[313666987,1707558646346,-1831.6,0.00022246,2]
[313666988,1707558646355,-500.0,0.00022246,2]
[313666989,1707558646364,-799.91,0.00022246,2]
[313666990,1707558646373,-548.67,0.00022246,2]
[313666991,1707558646382,-1372.7,0.00022246,2]
[313666992,1707558646391,-500.0,0.00022246,2]
[313666993,1707558646400,-500.0,0.00022246,2]
[313666994,1707558646409,-500.0,0.00022246,2]
[313666995,1707558646418,-1457.93,0.00022246,2]
[313666996,1707558646427,-500.0,0.00022246,2]
[313666997,1707558646438,-17467.92,0.00022246,2]
[313666998,1707558646448,-500.0,0.00022246,2]
[313666999,1707558646457,-500.0,0.00022246,2]
[313667000,1707558646466,-500.0,0.00022246,2]
[313667001,1707558646475,-1818.63,0.00022246,2]
[313667002,1707558646485,-9484.97,0.00022246,2]
[313667003,1707558646494,-500.0,0.00022246,2]
[313667004,1707558646504,-2245.47,0.00022246,2]
[313667005,1707558646513,-10149.24,0.00022246,2]
[313667006,1707558646526,-553.42,0.00022246,2]
[313667007,1707558646536,-762.6,0.00022246,2]
[313667008,1707558646546,-500.0,0.00022246,2]
[313667009,1707558646555,-500.0,0.00022246,2]
[313667010,1707558646564,-1318.18,0.00022246,2]
[313667011,1707558646573,-9566.37,0.00022246,2]
[313667012,1707558646583,-630.46,0.00022246,2]
[313667013,1707558646592,-586.91,0.00022246,2]
[313667014,1707558646601,-948.8,0.00022246,2]
[313667015,1707558646611,-6083.98,0.00022246,2]
[313667016,1707558646620,-6607.34739974,0.00022246,2]
[313667129,1707559632105,-161.5844476,0.00019153,2]
[313667130,1707559632126,-24900.0,0.00019154,2]
[313667131,1707559632146,-214.738097,0.00019517,2]
[313667132,1707559632166,-17084.8151039,0.00019588,2]
[313667133,1707559632185,-1202.33881507,0.0002,2]
[313667134,1707559632207,-1726.31798937,0.00020124,2]
[313667135,1707559632226,-1000.0,0.00020193,3]
[313667136,1707559632246,-1029.44805897,0.00020193,3]
[313667137,1707559632266,-200.0,0.00020566,2]
[313667138,1707559632284,-168.670348,0.0002071,2]
[313667139,1707559632305,-1381.03598446,0.0002099,3]
[313667145,1707559764343,30000.0,0.0003,120]
[313667227,1707559838333,-1150.87865958,0.000189,2]
[313667228,1707559838343,-6849.8,0.0002098,3]
[313667229,1707559838352,-155.12883111,0.00020989,2]
[313667230,1707559838361,-13882.36574231,0.00021,2]
[313667231,1707559838370,-9304.3366443,0.00021,2]
[313667232,1707559838381,-17776.6136819,0.00021695,2]
[313667233,1707559838390,-729.9211333,0.00021815,2]
[313667234,1707559838399,-5708.17,0.00021906,3]
[313667235,1707559838408,-821.15351128,0.00021912,2]
[313667236,1707559838418,-156.763,0.00021914,2]
[313667237,1707559838427,-5282.62575812,0.00021914,2]
[313667238,1707559838436,-2728.57258303,0.00021914,5]
[313667239,1707559838445,-155.13030946,0.00021914,2]
[313667241,1707559838454,-158.23495735,0.00021914,2]
[313667243,1707559838464,-161.19194361,0.00021914,2]
[313667245,1707559838473,-214.01715706,0.00021915,2]
[313667247,1707559838482,-1688.20558013,0.00021915,2]
[313667249,1707559838491,-159.24384051,0.00021915,2]
[313667251,1707559838500,-175.72920133,0.00021915,2]
[313667253,1707559838509,-182.70499067,0.00021915,2]
[313667254,1707559838519,-261.94560961,0.00021915,2]
[313667255,1707559838528,-232.52505957,0.00021915,2]
[313667256,1707559838537,-310.53638533,0.00021915,2]
[313667257,1707559838546,-156.63773576,0.00021915,2]
[313667258,1707559838556,-167.55699101,0.00021915,2]
[313667259,1707559838565,-1533.61086954,0.00021915,2]
[313667260,1707559838574,-891.11837604,0.00021915,2]
[313667261,1707559838584,-156.93164239,0.00021915,2]
[313667262,1707559838593,-564.26107295,0.00021915,2]
[313667263,1707559838603,-185.0083529,0.00021915,2]
[313667264,1707559838612,-455.96972701,0.00021915,2]
[313667265,1707559838622,-155.65048837,0.00021915,2]
[313667266,1707559838632,-155.08995217,0.00021916,2]
[313667267,1707559838641,-500.0,0.00021916,2]
[313667268,1707559838651,-500.0,0.00021916,2]
[313667269,1707559838660,-500.0,0.00021916,2]
[313667270,1707559838669,-500.0,0.00021916,2]
[313667271,1707559838678,-500.0,0.00021916,2]
[313667272,1707559838688,-500.0,0.00021916,2]
[313667273,1707559838697,-500.0,0.00021916,2]
[313667274,1707559838707,-152.45704767,0.00021916,2]
[313667275,1707559838716,-500.0,0.00021916,2]
[313667276,1707559838726,-448.14234594,0.00021916,2]
[313667277,1707559838735,-500.0,0.00021916,2]
[313667278,1707559838745,-500.0,0.00021916,2]
[313667279,1707559838754,-500.0,0.00021916,2]
[313667280,1707559838763,-500.0,0.00021916,2]
[313667281,1707559838773,-500.0,0.00021916,2]
[313667282,1707559838785,-222.93651326,0.00021916,2]
[313667283,1707559838795,-500.0,0.00021916,2]
[313667284,1707559838804,-500.0,0.00021916,2]
[313667285,1707559838814,-500.0,0.00021916,2]
[313667286,1707559838823,-383.38166381,0.00021916,2]
[313667287,1707559838833,-353.29911128,0.00021916,2]
[313667288,1707559838842,-500.0,0.00021916,2]
[313667289,1707559838851,-157.12594428,0.00021916,2]
[313667290,1707559838861,-500.0,0.00021916,2]
[313667291,1707559838870,-500.0,0.00021916,2]
[313667292,1707559838879,-500.0,0.00021916,2]
[313667293,1707559838888,-500.0,0.00021916,2]
[313667295,1707559838897,-500.0,0.00021916,2]
[313667296,1707559838906,-371.14761041,0.00021916,2]
[313667297,1707559838915,-500.0,0.00021916,2]
[313667299,1707559838924,-500.0,0.00021916,2]
[313667300,1707559838933,-500.0,0.00021916,2]
[313667301,1707559838942,-500.0,0.00021916,2]
[313667302,1707559838952,-500.0,0.00021916,2]
[313667303,1707559838961,-500.0,0.00021916,2]
[313667304,1707559838970,-500.0,0.00021916,2]
[313667305,1707559838979,-500.0,0.00021916,2]
[313667306,1707559838988,-500.0,0.00021916,2]
[313667307,1707559838998,-500.0,0.00021916,2]
[313667308,1707559839007,-500.0,0.00021916,2]
[313667309,1707559839017,-500.0,0.00021916,2]
[313667310,1707559839027,-500.0,0.00021916,2]
[313667311,1707559839037,-469.46257096,0.00021916,2]
[313667312,1707559839046,-500.0,0.00021916,2]
[313667313,1707559839055,-500.0,0.00021916,2]
[313667314,1707559839064,-500.0,0.00021916,2]
[313667315,1707559839073,-500.0,0.00021916,2]
[313667316,1707559839082,-500.0,0.00021916,2]
[313667317,1707559839091,-500.0,0.00021916,2]
[313667318,1707559839100,-500.0,0.00021916,2]
[313667319,1707559839109,-620.0,0.00021916,2]
[313667320,1707559839118,-500.0,0.00021916,2]
[313667321,1707559839127,-500.0,0.00021916,2]
[313667322,1707559839136,-500.0,0.00021916,2]
[313667323,1707559839145,-490.32849366,0.00021916,2]
[313667324,1707559839154,-372.113429,0.00021916,2]
[313667325,1707559839163,-500.0,0.00021916,2]
[313667326,1707559839172,-500.0,0.00021916,2]
[313667327,1707559839181,-500.0,0.00021916,2]
[313667328,1707559839190,-500.0,0.00021916,2]
[313667329,1707559839198,-500.0,0.00021916,2]
[313667330,1707559839207,-500.0,0.00021916,2]
[313667331,1707559839216,-500.0,0.00021916,2]
[313667332,1707559839225,-500.0,0.00021916,2]
[313667333,1707559839234,-500.0,0.00021917,2]
[313667334,1707559839244,-500.0,0.00021917,2]
[313667335,1707559839253,-500.0,0.00021917,2]
[313667336,1707559839262,-624.96645086,0.00021917,2]
[313667337,1707559839270,-500.0,0.00021917,2]
[313667338,1707559839280,-663.08,0.00021917,2]
[313667339,1707559839290,-500.0,0.00021917,2]
[313667340,1707559839299,-500.0,0.00021917,2]
[313667341,1707559839308,-500.0,0.00021917,2]
[313667342,1707559839317,-277.90995619,0.00021917,2]
[313667343,1707559839327,-500.0,0.00021917,2]
[313667345,1707559839336,-500.0,0.00021917,2]
[313667346,1707559839345,-500.0,0.00021917,2]
[313667347,1707559839354,-500.0,0.00021917,2]
[313667348,1707559839364,-502.07252857,0.00021917,2]
[313667349,1707559839373,-500.0,0.00021917,2]
[313667350,1707559839382,-500.0,0.00021917,2]
[313667351,1707559839392,-500.0,0.00021917,2]
[313667352,1707559839401,-500.0,0.00021917,2]
[313667353,1707559839410,-500.0,0.00021917,2]
[313667354,1707559839419,-2117.94,0.00021917,2]
[313667355,1707559839428,-1000.0,0.00021917,5]
[313667356,1707559839437,-1286.31,0.00021917,2]
[313667357,1707559839447,-1973.4,0.00021917,2]
[313667358,1707559839456,-500.0,0.00021917,2]
[313667359,1707559839466,-730.82,0.00021917,2]
[313667360,1707559839475,-1203.4,0.00021917,2]
[313667361,1707559839485,-500.0,0.00021917,2]
[313667362,1707559839494,-487.65756527,0.00021917,2]
[313667363,1707559839503,-500.0,0.00021917,2]
[313667364,1707559839513,-766.58,0.00021917,2]
[313667365,1707559839522,-784.58,0.00021917,2]
[313667366,1707559839531,-6889.21,0.00021917,2]
[313667367,1707559839540,-525.81,0.00021917,2]
[313667368,1707559839549,-735.38,0.00021917,2]
[313667369,1707559839559,-959.54,0.00021917,2]
[313667370,1707559839568,-500.0,0.00021917,2]
[313667371,1707559839577,-1772.64,0.00021917,2]
[313667372,1707559839586,-500.0,0.00021917,2]
[313667373,1707559839595,-500.0,0.00021917,2]
[313667374,1707559839604,-436.66222851,0.00021917,2]
[313667375,1707559839613,-503.49676638,0.00021917,2]
[313667376,1707559839623,-867.71,0.00021917,2]
[313667377,1707559839632,-500.0,0.00021917,2]
[313667378,1707559839642,-500.0,0.00021917,2]
[313667379,1707559839651,-500.0,0.00021917,2]
[313667380,1707559839660,-1755.28,0.00021917,2]
[313667381,1707559839670,-500.0,0.00021917,2]
[313667382,1707559839679,-500.0,0.00021917,2]
[313667384,1707559839688,-1397.19,0.00021917,2]
[313667386,1707559839698,-1315.5,0.00021917,2]
[313667388,1707559839707,-500.0,0.00021917,2]
[313667390,1707559839716,-500.0,0.00021917,2]
[313667392,1707559839725,-500.0,0.00021917,2]
[313667394,1707559839734,-9089.77,0.00021917,2]
[313667396,1707559839744,-16740.09,0.00021917,2]
[313667397,1707559839753,-2151.91,0.00021917,2]
[313667400,1707559839762,-500.0,0.00021917,2]
[313667401,1707559839772,-500.0,0.00021917,2]
[313667403,1707559839785,-500.0,0.00021917,2]
[313667404,1707559839795,-500.0,0.00021917,2]
[313667405,1707559839804,-500.0,0.00021917,2]
[313667406,1707559839813,-500.0,0.00021917,2]
[313667407,1707559839822,-500.0,0.00021917,2]
[313667408,1707559839831,-500.0,0.00021917,2]
[313667409,1707559839840,-500.0,0.00021917,2]
[313667410,1707559839849,-500.0,0.00021917,2]
[313667411,1707559839859,-9726.36,0.00021917,2]
[313667412,1707559839868,-500.0,0.00021917,2]
[313667413,1707559839878,-1263.25,0.00021917,2]
[313667414,1707559839887,-562.45,0.00021917,2]
[313667415,1707559839896,-500.0,0.00021917,2]
[313667416,1707559839905,-1742.85,0.00021917,2]
[313667417,1707559839914,-500.0,0.00021917,2]
[313667418,1707559839923,-5830.48,0.00021917,2]
[313667419,1707559839932,-500.0,0.00021917,2]
[313667420,1707559839941,-503.53963373,0.00021917,2]
[313667421,1707559839951,-1689.01,0.00021917,2]
[313667422,1707559839960,-500.53314637,0.00021917,2]
[313667423,1707559839969,-1682.05,0.00021917,2]
[313667424,1707559839978,-526.79848113,0.00021917,2]
[313667425,1707559839987,-500.0,0.00021917,2]
[313667426,1707559839996,-541.27651996,0.00021917,2]
[313667427,1707559840005,-500.0,0.00021917,2]
[313667428,1707559840014,-500.0,0.00021917,2]
[313667429,1707559840023,-1234.78,0.00021917,2]
[313667430,1707559840032,-9167.77,0.00021917,2]
[313667431,1707559840041,-570.31009821,0.00021917,2]
[313667432,1707559840050,-500.0,0.00021917,2]
[313667433,1707559840059,-604.19,0.00021917,2]
[313667434,1707559840068,-500.0,0.00021917,2]
[313667435,1707559840078,-500.0,0.00021917,2]
[313667436,1707559840086,-909.26,0.00021917,2]
[313667437,1707559840095,-7345.73,0.00021917,2]
[313667438,1707559840104,-500.0,0.00021917,2]